[Event "Titled Tuesday Blitz March 29 Late 2022"]
[White "Denishev, Marat"]
[Black "Cardoso Cardoso, Jose Gabriel"]
[WhiteFideId "24131563"]
[BlackFideId "4430492"]
[WhiteElo "2197"]
[BlackElo "2451"]
[Result "0-1"]
[Round "02"]
[TimeControl "180+1"]
[Date "2022.03.29"]
[WhiteClock "0:00:16"]
[BlackClock "0:00:29"]

1. d4 {[%clk 0:03:00]}  Nf6 {[%clk 0:02:56]} 2. Nf3 {[%clk 0:02:59]}  g6 {[%clk 0:02:53]} 3. c4 {[%clk 0:02:59]}  Bg7 {[%clk 0:02:53]} 4. Nc3 {[%clk 0:03:00]}  d5 {[%clk 0:02:51]} 5. cxd5 {[%clk 0:03:00]}  Nxd5 {[%clk 0:02:52]} 6. e4 {[%clk 0:03:00]}  Nxc3 {[%clk 0:02:51]} 7. bxc3 {[%clk 0:03:01]}  c5 {[%clk 0:02:51]} 8. Be3 {[%clk 0:03:01]}  Qa5 {[%clk 0:02:49]} 9. Qd2 {[%clk 0:03:00]}  Nc6 {[%clk 0:02:47]} 10. Rd1 {[%clk 0:02:55]}  O-O {[%clk 0:02:44]} 11. Bc4 {[%clk 0:02:48]}  Bg4 {[%clk 0:02:34]} 12. Bd5 {[%clk 0:02:35]}  e6 {[%clk 0:02:23]} 13. Bxc6 {[%clk 0:02:34]}  bxc6 {[%clk 0:02:24]} 14. O-O {[%clk 0:02:30]}  Rab8 {[%clk 0:02:12]} 15. dxc5 {[%clk 0:02:05]}  Bxc3 {[%clk 0:02:08]} 16. Qd6 {[%clk 0:02:03]}  Qa4 {[%clk 0:02:03]} 17. Bh6 {[%clk 0:01:55]}  Rfe8 {[%clk 0:01:45]} 18. Rd3 {[%clk 0:01:49]}  Bh8 {[%clk 0:01:31]} 19. Ng5 {[%clk 0:01:27]}  Bf6 {[%clk 0:01:03]} 20. Qf4 {[%clk 0:01:17]}  Bf5 {[%clk 0:00:55]} 21. Rd7 {[%clk 0:01:05]}  e5 {[%clk 0:00:51]} 22. Nxh7 {[%clk 0:00:42]}  Kxh7 {[%clk 0:00:44]} 23. Rxf7+ {[%clk 0:00:41]}  Kg8 {[%clk 0:00:43]} 24. Qf3 {[%clk 0:00:33]}  Kxf7 {[%clk 0:00:42]} 25. exf5 {[%clk 0:00:32]}  Qh4 {[%clk 0:00:40]} 26. fxg6+ {[%clk 0:00:29]}  Kxg6 {[%clk 0:00:39]} 27. Be3 {[%clk 0:00:29]}  e4 {[%clk 0:00:38]} 28. Qe2 {[%clk 0:00:28]}  Be5 {[%clk 0:00:35]} 29. g3 {[%clk 0:00:28]}  Qh5 {[%clk 0:00:35]} 30. Qc4 {[%clk 0:00:28]}  Qf3 {[%clk 0:00:32]} 31. Qa6 {[%clk 0:00:21]}  Rh8 {[%clk 0:00:30]} 32. Qxc6+ {[%clk 0:00:21]}  Bf6 {[%clk 0:00:30]} 33. h4 {[%clk 0:00:18]}  Rxh4 {[%clk 0:00:28]} 34. gxh4 {[%clk 0:00:17]}  Qg4+ {[%clk 0:00:28]} 35. Kh2 {[%clk 0:00:16]}  Qxh4+ {[%clk 0:00:28]} 36. Kg2 {[%clk 0:00:16]}  Qg4+ {[%clk 0:00:29]} 0-1


[Site "https://www.chess.com"]

[Event "Titled Tuesday Blitz March 29 Late 2022"]
[White "Dreev, Aleksey"]
[Black "Barbero Sendic, Alejandro"]
[WhiteFideId "4100107"]
[BlackFideId "3001288"]
[WhiteElo "2625"]
[BlackElo "2314"]
[Result "1-0"]
[Round "02"]
[TimeControl "180+1"]
[Date "2022.03.29"]
[WhiteClock "0:00:25"]
[BlackClock "0:00:12"]

1. d4 {[%clk 0:03:00]}  d5 {[%clk 0:02:57]} 2. c4 {[%clk 0:03:00]}  e6 {[%clk 0:02:58]} 3. Nc3 {[%clk 0:03:00]}  a6 {[%clk 0:02:57]} 4. cxd5 {[%clk 0:02:50]}  exd5 {[%clk 0:02:58]} 5. Bf4 {[%clk 0:02:50]}  Nf6 {[%clk 0:02:57]} 6. e3 {[%clk 0:02:49]}  c5 {[%clk 0:02:57]} 7. Nf3 {[%clk 0:02:47]}  c4 {[%clk 0:02:53]} 8. Ne5 {[%clk 0:02:38]}  b5 {[%clk 0:02:52]} 9. a3 {[%clk 0:02:33]}  Bb7 {[%clk 0:02:42]} 10. g4 {[%clk 0:02:31]}  Be7 {[%clk 0:02:39]} 11. Bg2 {[%clk 0:02:27]}  Nbd7 {[%clk 0:02:31]} 12. Qc2 {[%clk 0:02:25]}  Nb6 {[%clk 0:02:24]} 13. h4 {[%clk 0:02:20]}  O-O {[%clk 0:02:03]} 14. h5 {[%clk 0:02:19]}  Nfd7 {[%clk 0:01:55]} 15. Rd1 {[%clk 0:02:08]}  Bg5 {[%clk 0:01:38]} 16. Nxd7 {[%clk 0:01:59]}  Nxd7 {[%clk 0:01:19]} 17. Bxd5 {[%clk 0:01:59]}  Bxd5 {[%clk 0:01:06]} 18. Nxd5 {[%clk 0:02:00]}  Nf6 {[%clk 0:00:56]} 19. Nxf6+ {[%clk 0:01:54]}  Qxf6 {[%clk 0:00:55]} 20. Bxg5 {[%clk 0:01:53]}  Qxg5 {[%clk 0:00:56]} 21. Qf5 {[%clk 0:01:52]}  Qd8 {[%clk 0:00:54]} 22. g5 {[%clk 0:01:46]}  Rc8 {[%clk 0:00:48]} 23. Ke2 {[%clk 0:01:19]}  c3 {[%clk 0:00:46]} 24. bxc3 {[%clk 0:01:19]}  Rxc3 {[%clk 0:00:47]} 25. d5 {[%clk 0:00:51]}  Rxa3 {[%clk 0:00:29]} 26. d6 {[%clk 0:00:51]}  Qa8 {[%clk 0:00:20]} 27. Rd5 {[%clk 0:00:50]}  Ra2+ {[%clk 0:00:18]} 28. Kf3 {[%clk 0:00:50]}  g6 {[%clk 0:00:18]} 29. Qd3 {[%clk 0:00:36]}  Ra3 {[%clk 0:00:17]} 30. Qd2 {[%clk 0:00:32]}  Rd8 {[%clk 0:00:15]} 31. Kg3 {[%clk 0:00:31]}  b4 {[%clk 0:00:12]} 32. hxg6 {[%clk 0:00:28]}  hxg6 {[%clk 0:00:12]} 33. Qd4 {[%clk 0:00:25]} 1-0


[Site "https://www.chess.com"]

[Event "Titled Tuesday Blitz March 29 Late 2022"]
[White "Estrada Nieto, Julian"]
[Black "Moskalenko, Alexander"]
[WhiteFideId "5101018"]
[BlackFideId "4155351"]
[WhiteElo "2246"]
[BlackElo "2475"]
[Result "0-1"]
[Round "02"]
[TimeControl "180+1"]
[Date "2022.03.30"]
[WhiteClock "0:00:01"]
[BlackClock "0:00:38"]

1. e4 {[%clk 0:03:00]}  c5 {[%clk 0:02:59]} 2. Nf3 {[%clk 0:03:00]}  Nc6 {[%clk 0:02:59]} 3. Bb5 {[%clk 0:03:00]}  e6 {[%clk 0:02:57]} 4. O-O {[%clk 0:02:59]}  Nge7 {[%clk 0:02:57]} 5. Re1 {[%clk 0:02:59]}  a6 {[%clk 0:02:57]} 6. Bxc6 {[%clk 0:02:59]}  Nxc6 {[%clk 0:02:58]} 7. d4 {[%clk 0:02:59]}  cxd4 {[%clk 0:02:59]} 8. Nxd4 {[%clk 0:03:00]}  Bc5 {[%clk 0:02:55]} 9. Be3 {[%clk 0:02:59]}  Bb4 {[%clk 0:02:35]} 10. c3 {[%clk 0:02:43]}  Be7 {[%clk 0:02:34]} 11. Nd2 {[%clk 0:02:33]}  d6 {[%clk 0:02:28]} 12. Nxc6 {[%clk 0:02:22]}  bxc6 {[%clk 0:02:28]} 13. Nc4 {[%clk 0:02:19]}  O-O {[%clk 0:02:28]} 14. Qa4 {[%clk 0:01:37]}  d5 {[%clk 0:02:27]} 15. Ne5 {[%clk 0:01:14]}  Bd6 {[%clk 0:02:03]} 16. Qxc6 {[%clk 0:00:52]}  Rb8 {[%clk 0:02:04]} 17. Nd3 {[%clk 0:00:50]}  Bb7 {[%clk 0:01:58]} 18. Qa4 {[%clk 0:00:50]}  dxe4 {[%clk 0:01:59]} 19. Nc5 {[%clk 0:00:43]}  Qc7 {[%clk 0:01:58]} 20. Nxb7 {[%clk 0:00:38]}  Rxb7 {[%clk 0:01:59]} 21. Qxe4 {[%clk 0:00:20]}  Bxh2+ {[%clk 0:01:53]} 22. Kh1 {[%clk 0:00:20]}  Rxb2 {[%clk 0:01:54]} 23. Rad1 {[%clk 0:00:13]}  Be5 {[%clk 0:01:51]} 24. c4 {[%clk 0:00:11]}  Rxa2 {[%clk 0:01:44]} 25. c5 {[%clk 0:00:11]}  Bf6 {[%clk 0:01:33]} 26. Qc4 {[%clk 0:00:10]}  Ra5 {[%clk 0:01:26]} 27. c6 {[%clk 0:00:10]}  Rc8 {[%clk 0:01:26]} 28. Rc1 {[%clk 0:00:10]}  h6 {[%clk 0:01:21]} 29. Red1 {[%clk 0:00:10]}  Rh5+ {[%clk 0:01:07]} 30. Kg1 {[%clk 0:00:09]}  Qh2+ {[%clk 0:01:07]} 31. Kf1 {[%clk 0:00:10]}  Qh1+ {[%clk 0:01:05]} 32. Ke2 {[%clk 0:00:09]}  Qxg2 {[%clk 0:01:06]} 33. c7 {[%clk 0:00:07]}  Rd5 {[%clk 0:01:05]} 34. Qxa6 {[%clk 0:00:07]}  Qg4+ {[%clk 0:01:01]} 35. Ke1 {[%clk 0:00:07]}  Rxd1+ {[%clk 0:00:59]} 36. Rxd1 {[%clk 0:00:07]}  Rxc7 {[%clk 0:00:59]} 37. Qa8+ {[%clk 0:00:06]}  Kh7 {[%clk 0:00:59]} 38. Qa2 {[%clk 0:00:05]}  Qf5 {[%clk 0:00:54]} 39. Qe2 {[%clk 0:00:04]}  Rc2 {[%clk 0:00:54]} 40. Qd3 {[%clk 0:00:04]}  Qxd3 {[%clk 0:00:52]} 41. Rxd3 {[%clk 0:00:04]}  h5 {[%clk 0:00:52]} 42. Rd7 {[%clk 0:00:05]}  Kg6 {[%clk 0:00:52]} 43. Kf1 {[%clk 0:00:05]}  Rc4 {[%clk 0:00:52]} 44. Kg2 {[%clk 0:00:05]}  h4 {[%clk 0:00:52]} 45. Kh3 {[%clk 0:00:04]}  Rc8 {[%clk 0:00:51]} 46. Rd3 {[%clk 0:00:03]}  Rc7 {[%clk 0:00:50]} 47. Kg4 {[%clk 0:00:03]}  Rc4+ {[%clk 0:00:50]} 48. Kh3 {[%clk 0:00:03]}  Kf5 {[%clk 0:00:50]} 49. Rd7 {[%clk 0:00:03]}  g5 {[%clk 0:00:39]} 50. Rxf7 {[%clk 0:00:02]}  g4+ {[%clk 0:00:40]} 51. Kg2 {[%clk 0:00:03]}  Kg6 {[%clk 0:00:39]} 52. Rf8 {[%clk 0:00:02]}  Be5 {[%clk 0:00:38]} 53. Rg8+ {[%clk 0:00:01]}  Kf7 {[%clk 0:00:38]} 0-1


[Site "https://www.chess.com"]

[Event "Titled Tuesday Blitz March 29 Late 2022"]
[White "Ezat, Mohamed"]
[Black "Babazada, Khazar"]
[WhiteFideId "10600906"]
[BlackFideId "13413554"]
[WhiteElo "2386"]
[BlackElo "2418"]
[Result "0-1"]
[Round "02"]
[TimeControl "180+1"]
[Date "2022.03.29"]
[WhiteClock "0:00:09"]
[BlackClock "0:00:12"]

1. d4 {[%clk 0:02:37]}  g6 {[%clk 0:02:59]} 2. c4 {[%clk 0:02:35]}  Bg7 {[%clk 0:02:59]} 3. e4 {[%clk 0:02:35]}  d6 {[%clk 0:02:59]} 4. Nc3 {[%clk 0:02:35]}  Nf6 {[%clk 0:02:56]} 5. Be2 {[%clk 0:02:34]}  O-O {[%clk 0:02:56]} 6. Bg5 {[%clk 0:02:34]}  Na6 {[%clk 0:02:47]} 7. Qd2 {[%clk 0:02:32]}  c6 {[%clk 0:02:38]} 8. Nf3 {[%clk 0:02:23]}  Bg4 {[%clk 0:02:37]} 9. O-O {[%clk 0:02:22]}  Qc7 {[%clk 0:02:11]} 10. h3 {[%clk 0:02:20]}  Bxf3 {[%clk 0:02:11]} 11. Bxf3 {[%clk 0:02:20]}  e5 {[%clk 0:02:12]} 12. d5 {[%clk 0:02:20]}  cxd5 {[%clk 0:02:03]} 13. Nxd5 {[%clk 0:02:11]}  Nxd5 {[%clk 0:02:03]} 14. cxd5 {[%clk 0:02:11]}  Qd7 {[%clk 0:01:38]} 15. b4 {[%clk 0:02:08]}  Nc7 {[%clk 0:01:36]} 16. a4 {[%clk 0:02:06]}  Rac8 {[%clk 0:01:22]} 17. Be3 {[%clk 0:01:59]}  a6 {[%clk 0:01:19]} 18. Rfc1 {[%clk 0:01:53]}  f5 {[%clk 0:01:19]} 19. Bb6 {[%clk 0:01:52]}  Ne8 {[%clk 0:01:19]} 20. Rxc8 {[%clk 0:01:50]}  Qxc8 {[%clk 0:01:20]} 21. b5 {[%clk 0:01:48]}  axb5 {[%clk 0:01:15]} 22. axb5 {[%clk 0:01:46]}  Nf6 {[%clk 0:01:16]} 23. Qb4 {[%clk 0:01:42]}  Qd7 {[%clk 0:01:11]} 24. Rc1 {[%clk 0:01:38]}  Ne8 {[%clk 0:01:06]} 25. Be2 {[%clk 0:01:25]}  Qf7 {[%clk 0:01:02]} 26. Rc8 {[%clk 0:01:20]}  fxe4 {[%clk 0:00:59]} 27. Qxe4 {[%clk 0:00:52]}  Nf6 {[%clk 0:00:59]} 28. Qc2 {[%clk 0:00:49]}  Nd7 {[%clk 0:00:28]} 29. Be3 {[%clk 0:00:41]}  Nc5 {[%clk 0:00:25]} 30. Rxf8+ {[%clk 0:00:39]}  Bxf8 {[%clk 0:00:25]} 31. Bxc5 {[%clk 0:00:38]}  dxc5 {[%clk 0:00:25]} 32. d6 {[%clk 0:00:37]}  Qd7 {[%clk 0:00:22]} 33. Bc4+ {[%clk 0:00:37]}  Kg7 {[%clk 0:00:21]} 34. Qe4 {[%clk 0:00:37]}  Bxd6 {[%clk 0:00:18]} 35. Qd5 {[%clk 0:00:38]}  Qe7 {[%clk 0:00:16]} 36. g3 {[%clk 0:00:36]}  e4 {[%clk 0:00:17]} 37. Kg2 {[%clk 0:00:33]}  b6 {[%clk 0:00:15]} 38. h4 {[%clk 0:00:32]}  Qe5 {[%clk 0:00:13]} 39. Qf7+ {[%clk 0:00:31]}  Kh6 {[%clk 0:00:13]} 40. Qb7 {[%clk 0:00:21]}  e3 {[%clk 0:00:10]} 41. Bg8 {[%clk 0:00:19]}  Bc7 {[%clk 0:00:08]} 42. f4 {[%clk 0:00:18]}  Qb2+ {[%clk 0:00:08]} 43. Kh3 {[%clk 0:00:19]}  Qg7 {[%clk 0:00:04]} 44. Bc4 {[%clk 0:00:17]}  Qd7+ {[%clk 0:00:04]} 45. Kg2 {[%clk 0:00:15]}  Qd2+ {[%clk 0:00:04]} 46. Kh3 {[%clk 0:00:14]}  Qd7+ {[%clk 0:00:04]} 47. g4 {[%clk 0:00:13]}  e2 {[%clk 0:00:03]} 48. Bxe2 {[%clk 0:00:10]}  Qe7 {[%clk 0:00:03]} 49. Bf3 {[%clk 0:00:10]}  Qd6 {[%clk 0:00:03]} 50. g5+ {[%clk 0:00:10]}  Kg7 {[%clk 0:00:04]} 51. Qe4 {[%clk 0:00:10]}  Qxf4 {[%clk 0:00:04]} 52. Qe7+ {[%clk 0:00:10]}  Qf7 {[%clk 0:00:04]} 53. Qe4 {[%clk 0:00:09]}  Qd7+ {[%clk 0:00:04]} 54. Bg4 {[%clk 0:00:08]}  Qd6 {[%clk 0:00:04]} 55. Kg2 {[%clk 0:00:06]}  Qg3+ {[%clk 0:00:05]} 56. Kf1 {[%clk 0:00:07]}  Qd6 {[%clk 0:00:05]} 57. Kg2 {[%clk 0:00:07]}  Qg3+ {[%clk 0:00:03]} 58. Kf1 {[%clk 0:00:07]}  Qh2 {[%clk 0:00:03]} 59. h5 {[%clk 0:00:07]}  Qf4+ {[%clk 0:00:03]} 60. Qxf4 {[%clk 0:00:06]}  Bxf4 {[%clk 0:00:03]} 61. hxg6 {[%clk 0:00:06]}  hxg6 {[%clk 0:00:04]} 62. Bd7 {[%clk 0:00:06]}  Bxg5 {[%clk 0:00:05]} 63. Be6 {[%clk 0:00:06]}  Kf6 {[%clk 0:00:06]} 64. Bc4 {[%clk 0:00:06]}  Bf4 {[%clk 0:00:06]} 65. Ke2 {[%clk 0:00:06]}  Bd6 {[%clk 0:00:07]} 66. Kd3 {[%clk 0:00:06]}  Ke5 {[%clk 0:00:07]} 67. Ke3 {[%clk 0:00:06]}  g5 {[%clk 0:00:08]} 68. Kf3 {[%clk 0:00:06]}  Kd4 {[%clk 0:00:08]} 69. Bf1 {[%clk 0:00:06]}  c4 {[%clk 0:00:09]} 70. Ke2 {[%clk 0:00:06]}  g4 {[%clk 0:00:09]} 71. Kd2 {[%clk 0:00:06]}  g3 {[%clk 0:00:09]} 72. Kc2 {[%clk 0:00:06]}  Kc5 {[%clk 0:00:09]} 73. Kc3 {[%clk 0:00:06]}  Be5+ {[%clk 0:00:09]} 74. Kc2 {[%clk 0:00:05]}  Kxb5 {[%clk 0:00:10]} 75. Bg2 {[%clk 0:00:06]}  Kc5 {[%clk 0:00:09]} 76. Kd2 {[%clk 0:00:06]}  b5 {[%clk 0:00:09]} 77. Kc2 {[%clk 0:00:07]}  b4 {[%clk 0:00:10]} 78. Kd2 {[%clk 0:00:07]}  b3 {[%clk 0:00:10]} 79. Kc1 {[%clk 0:00:07]}  Kb4 {[%clk 0:00:10]} 80. Kb1 {[%clk 0:00:08]}  c3 {[%clk 0:00:11]} 81. Kc1 {[%clk 0:00:09]}  Bf4+ {[%clk 0:00:11]} 82. Kb1 {[%clk 0:00:09]}  c2+ {[%clk 0:00:12]} 83. Kb2 {[%clk 0:00:09]}  c1=Q# {[%clk 0:00:12]} 0-1


[Site "https://www.chess.com"]

[Event "Titled Tuesday Blitz March 29 Late 2022"]
[White "Fernandez Siles, Luis"]
[Black "Jary, Sergey"]
[WhiteFideId "2209420"]
[BlackFideId "14110350"]
[WhiteElo "2212"]
[BlackElo "2260"]
[Result "0-1"]
[Round "02"]
[TimeControl "180+1"]
[Date "2022.03.30"]
[WhiteClock "0:01:08"]
[BlackClock "0:02:13"]

1. e4 {[%clk 0:03:00]}  c5 {[%clk 0:02:59]} 2. c3 {[%clk 0:03:00]}  Nf6 {[%clk 0:02:58]} 3. e5 {[%clk 0:02:59]}  Nd5 {[%clk 0:02:59]} 4. d4 {[%clk 0:02:59]}  cxd4 {[%clk 0:02:59]} 5. Nf3 {[%clk 0:03:00]}  Nc6 {[%clk 0:03:00]} 6. cxd4 {[%clk 0:03:00]}  d6 {[%clk 0:02:59]} 7. Bc4 {[%clk 0:02:59]}  Nb6 {[%clk 0:02:59]} 8. Bb5 {[%clk 0:02:58]}  dxe5 {[%clk 0:02:56]} 9. Nxe5 {[%clk 0:02:58]}  Bd7 {[%clk 0:02:56]} 10. Nxd7 {[%clk 0:02:58]}  Qxd7 {[%clk 0:02:56]} 11. O-O {[%clk 0:02:56]}  e6 {[%clk 0:02:56]} 12. Nc3 {[%clk 0:02:55]}  Be7 {[%clk 0:02:56]} 13. Qg4 {[%clk 0:02:55]}  O-O {[%clk 0:02:55]} 14. Rd1 {[%clk 0:02:46]}  Nd5 {[%clk 0:02:49]} 15. Bh6 {[%clk 0:02:17]}  Bf6 {[%clk 0:02:48]} 16. Ne4 {[%clk 0:02:16]}  Qe7 {[%clk 0:02:48]} 17. Bxc6 {[%clk 0:02:14]}  bxc6 {[%clk 0:02:48]} 18. Rac1 {[%clk 0:02:12]}  Rfc8 {[%clk 0:02:47]} 19. Rd3 {[%clk 0:02:10]}  Kh8 {[%clk 0:02:46]} 20. Bg5 {[%clk 0:01:28]}  Rab8 {[%clk 0:02:35]} 21. b3 {[%clk 0:01:21]}  Bxg5 {[%clk 0:02:29]} 22. Nxg5 {[%clk 0:01:20]}  h6 {[%clk 0:02:16]} 23. Ne4 {[%clk 0:01:08]}  f5 {[%clk 0:02:13]} 0-1


[Site "https://www.chess.com"]

[Event "Titled Tuesday Blitz March 29 Late 2022"]
[White "Galego, Luis"]
[Black "Svane, Rasmus"]
[WhiteFideId "1900072"]
[BlackFideId "4657101"]
[WhiteElo "2516"]
[BlackElo "2645"]
[Result "0-1"]
[Round "02"]
[TimeControl "180+1"]
[Date "2022.03.30"]
[WhiteClock "0:00:03"]
[BlackClock "0:00:17"]

1. e4 {[%clk 0:03:00]}  c6 {[%clk 0:03:00]} 2. d4 {[%clk 0:02:59]}  d5 {[%clk 0:03:00]} 3. e5 {[%clk 0:03:00]}  Bf5 {[%clk 0:03:00]} 4. Be3 {[%clk 0:02:57]}  e6 {[%clk 0:03:01]} 5. c4 {[%clk 0:02:54]}  Ne7 {[%clk 0:02:58]} 6. Nc3 {[%clk 0:02:53]}  Nd7 {[%clk 0:02:58]} 7. Nf3 {[%clk 0:02:50]}  dxc4 {[%clk 0:02:57]} 8. Bxc4 {[%clk 0:02:50]}  Nb6 {[%clk 0:02:58]} 9. Be2 {[%clk 0:02:47]}  Ned5 {[%clk 0:02:57]} 10. O-O {[%clk 0:02:44]}  Be7 {[%clk 0:02:57]} 11. h3 {[%clk 0:02:27]}  O-O {[%clk 0:02:56]} 12. Qd2 {[%clk 0:02:26]}  Qd7 {[%clk 0:02:50]} 13. Rac1 {[%clk 0:02:25]}  Rfd8 {[%clk 0:02:50]} 14. Rfd1 {[%clk 0:02:26]}  Rac8 {[%clk 0:02:50]} 15. Bg5 {[%clk 0:02:25]}  h6 {[%clk 0:02:48]} 16. Bxe7 {[%clk 0:02:24]}  Qxe7 {[%clk 0:02:44]} 17. Bd3 {[%clk 0:02:10]}  Bxd3 {[%clk 0:02:35]} 18. Qxd3 {[%clk 0:02:10]}  Nxc3 {[%clk 0:02:35]} 19. bxc3 {[%clk 0:02:09]}  c5 {[%clk 0:02:36]} 20. Nd2 {[%clk 0:01:56]}  cxd4 {[%clk 0:02:25]} 21. cxd4 {[%clk 0:01:57]}  Qb4 {[%clk 0:02:13]} 22. Rxc8 {[%clk 0:01:45]}  Rxc8 {[%clk 0:02:14]} 23. Ne4 {[%clk 0:01:42]}  Nd5 {[%clk 0:02:11]} 24. Nd6 {[%clk 0:01:37]}  Rc3 {[%clk 0:02:06]} 25. Qe2 {[%clk 0:01:29]}  Rc7 {[%clk 0:01:59]} 26. Qd3 {[%clk 0:01:02]}  Nc3 {[%clk 0:01:51]} 27. Rd2 {[%clk 0:00:56]}  Nd5 {[%clk 0:01:35]} 28. Rd1 {[%clk 0:00:55]}  b6 {[%clk 0:01:07]} 29. Kh2 {[%clk 0:00:49]}  Qb2 {[%clk 0:01:00]} 30. Rd2 {[%clk 0:00:47]}  Qc1 {[%clk 0:01:00]} 31. g3 {[%clk 0:00:36]}  Qe1 {[%clk 0:00:55]} 32. Re2 {[%clk 0:00:33]}  Qf1 {[%clk 0:00:53]} 33. Qf3 {[%clk 0:00:32]}  Qd1 {[%clk 0:00:33]} 34. h4 {[%clk 0:00:22]}  Qxd4 {[%clk 0:00:33]} 35. Re4 {[%clk 0:00:20]}  Qc3 {[%clk 0:00:30]} 36. Qh5 {[%clk 0:00:18]}  Qd3 {[%clk 0:00:25]} 37. Rg4 {[%clk 0:00:17]}  Kf8 {[%clk 0:00:23]} 38. Kg2 {[%clk 0:00:05]}  Ne3+ {[%clk 0:00:19]} 39. fxe3 {[%clk 0:00:04]}  Rc2+ {[%clk 0:00:19]} 40. Kf3 {[%clk 0:00:03]}  Qd1+ {[%clk 0:00:17]} 41. Kf4 {[%clk 0:00:03]}  Rf2+ {[%clk 0:00:17]} 42. Ke4 {[%clk 0:00:03]}  Qd5# {[%clk 0:00:17]} 0-1


[Site "https://www.chess.com"]

[Event "Titled Tuesday Blitz March 29 Late 2022"]
[White "Gauri, Shankar"]
[Black "Vargas, Gabriela"]
[WhiteFideId "5041350"]
[BlackFideId "3700860"]
[WhiteElo "2240"]
[BlackElo "2071"]
[Result "1-0"]
[Round "02"]
[TimeControl "180+1"]
[Date "2022.03.30"]
[WhiteClock "0:00:08"]
[BlackClock "0:00:17"]

1. Nf3 {[%clk 0:03:00]}  d5 {[%clk 0:02:59]} 2. c4 {[%clk 0:03:00]}  c6 {[%clk 0:02:59]} 3. g3 {[%clk 0:02:57]}  Nf6 {[%clk 0:02:58]} 4. Bg2 {[%clk 0:02:57]}  e6 {[%clk 0:02:57]} 5. O-O {[%clk 0:02:56]}  Bd6 {[%clk 0:02:55]} 6. b3 {[%clk 0:02:56]}  O-O {[%clk 0:02:55]} 7. Bb2 {[%clk 0:02:50]}  Nbd7 {[%clk 0:02:51]} 8. d4 {[%clk 0:02:44]}  a5 {[%clk 0:02:43]} 9. Nc3 {[%clk 0:02:43]}  Re8 {[%clk 0:02:22]} 10. Qc2 {[%clk 0:02:42]}  Qe7 {[%clk 0:02:11]} 11. e4 {[%clk 0:02:36]}  dxe4 {[%clk 0:02:10]} 12. Nxe4 {[%clk 0:02:37]}  Nxe4 {[%clk 0:02:10]} 13. Qxe4 {[%clk 0:02:34]}  Ba3 {[%clk 0:02:09]} 14. Bxa3 {[%clk 0:02:33]}  Qxa3 {[%clk 0:02:10]} 15. h4 {[%clk 0:02:25]}  h6 {[%clk 0:02:04]} 16. g4 {[%clk 0:02:19]}  Nf6 {[%clk 0:02:01]} 17. Qf4 {[%clk 0:02:17]}  Qe7 {[%clk 0:01:55]} 18. Rfe1 {[%clk 0:02:14]}  a4 {[%clk 0:01:49]} 19. Ne5 {[%clk 0:01:57]}  axb3 {[%clk 0:01:44]} 20. axb3 {[%clk 0:01:58]}  Bd7 {[%clk 0:01:44]} 21. Rxa8 {[%clk 0:01:53]}  Rxa8 {[%clk 0:01:45]} 22. g5 {[%clk 0:01:53]}  hxg5 {[%clk 0:01:34]} 23. hxg5 {[%clk 0:01:54]}  Nh7 {[%clk 0:01:27]} 24. g6 {[%clk 0:01:50]}  fxg6 {[%clk 0:01:26]} 25. Nxd7 {[%clk 0:01:33]}  Qxd7 {[%clk 0:01:22]} 26. Bh3 {[%clk 0:01:34]}  Nf8 {[%clk 0:01:19]} 27. Qe5 {[%clk 0:01:28]}  Re8 {[%clk 0:01:13]} 28. d5 {[%clk 0:01:25]}  cxd5 {[%clk 0:01:13]} 29. cxd5 {[%clk 0:01:25]}  Qb5 {[%clk 0:00:55]} 30. dxe6 {[%clk 0:00:59]}  Qxe5 {[%clk 0:00:55]} 31. Rxe5 {[%clk 0:00:59]}  Re7 {[%clk 0:00:48]} 32. f4 {[%clk 0:00:54]}  Nh7 {[%clk 0:00:44]} 33. Rd5 {[%clk 0:00:33]}  Kf8 {[%clk 0:00:42]} 34. Kf2 {[%clk 0:00:20]}  Rc7 {[%clk 0:00:34]} 35. Ke3 {[%clk 0:00:10]}  Ke7 {[%clk 0:00:34]} 36. Kd4 {[%clk 0:00:07]}  Nf6 {[%clk 0:00:30]} 37. Rg5 {[%clk 0:00:07]}  Rc1 {[%clk 0:00:26]} 38. Rxg6 {[%clk 0:00:07]}  Rd1+ {[%clk 0:00:27]} 39. Kc4 {[%clk 0:00:07]}  Kf8 {[%clk 0:00:24]} 40. f5 {[%clk 0:00:04]}  Rh1 {[%clk 0:00:23]} 41. Rg3 {[%clk 0:00:04]}  Ne4 {[%clk 0:00:21]} 42. Rd3 {[%clk 0:00:05]}  Rc1+ {[%clk 0:00:20]} 43. Kb4 {[%clk 0:00:04]}  Nc5 {[%clk 0:00:18]} 44. Rd8+ {[%clk 0:00:04]}  Ke7 {[%clk 0:00:19]} 45. Rg8 {[%clk 0:00:04]}  Nd3+ {[%clk 0:00:19]} 46. Ka5 {[%clk 0:00:03]}  Rc5+ {[%clk 0:00:18]} 47. Kb6 {[%clk 0:00:04]}  Re5 {[%clk 0:00:18]} 48. Rxg7+ {[%clk 0:00:04]}  Kf6 {[%clk 0:00:18]} 49. Rf7+ {[%clk 0:00:05]}  Kg5 {[%clk 0:00:18]} 50. Kxb7 {[%clk 0:00:06]}  Nc5+ {[%clk 0:00:17]} 51. Kc6 {[%clk 0:00:06]}  Nd3 {[%clk 0:00:17]} 52. Kd6 {[%clk 0:00:06]}  Rb5 {[%clk 0:00:17]} 53. e7 {[%clk 0:00:07]}  Rb6+ {[%clk 0:00:18]} 54. Kc7 {[%clk 0:00:07]}  Rxb3 {[%clk 0:00:17]} 55. e8=Q {[%clk 0:00:07]}  Rc3+ {[%clk 0:00:17]} 56. Kb7 {[%clk 0:00:08]}  Nc5+ {[%clk 0:00:17]} 57. Kb6 {[%clk 0:00:08]} 1-0


[Site "https://www.chess.com"]